{"text_format":"3","workbook":"xlsx","n_sheets":2,"sheets":["Gegevens Trainers","Blad2"],"read":"whole","date_system":"1900"}

{"sheet":"Gegevens Trainers","index":0,"n_rows":31,"n_cols":27,"rows_kept":31,"merged":[[0,0,0,26],[1,0,2,0],[1,1,2,1],[1,2,2,2],[1,3,2,3],[1,6,1,7],[2,18,3,18],[2,19,3,19],[2,20,3,20],[2,21,3,21],[2,22,3,22],[2,23,3,23],[2,24,3,24],[2,25,3,25],[2,26,3,26],[3,0,3,5],[4,6,4,7],[5,6,5,7],[6,6,6,7],[7,6,7,7],[8,6,8,7],[9,6,9,7],[10,6,10,7],[11,6,11,7],[12,6,12,7],[13,6,13,7],[14,6,14,7],[15,6,15,7],[16,6,16,7],[17,6,17,7],[18,6,18,7],[19,6,19,7],[20,6,20,7],[21,6,21,7],[22,6,22,7],[23,6,23,7],[24,6,24,7],[25,6,25,7],[26,6,26,7],[27,6,27,7],[31,6,31,7],[32,6,32,7],[33,6,33,7],[34,6,34,7],[35,6,35,7],[36,6,36,7],[37,6,37,7],[38,6,38,7],[39,6,39,7],[40,6,40,7],[41,6,41,7],[42,6,42,7],[43,6,43,7],[44,6,44,7],[45,6,45,7],[46,6,46,7],[47,6,47,7],[48,6,48,7],[49,6,49,7],[50,6,50,7],[51,6,51,7],[52,6,52,7],[53,6,53,7]]}
["Het is mogelijk om een trainer op verschillende lijnen in te vullen afhankelijk van aan hoeveel groepen ze training geven. Bv: Jan Jansens geeft training aan Meisjes U15 en aan Jongens U15, dan zijn er 2 lijnen met Jan Jansens op!!!"]
["Naam","Voor-naam","E-mailadres","Geboorte-datum","Jeugd-niveau","Functie ","Bijscholingen 2017-2018",null,"naam bijscholing, naam lesgever, locatie, datum","naam bijscholing, naam lesgever, locatie, datum","naam bijscholing, naam lesgever, locatie, datum","naam bijscholing, naam lesgever, locatie, datum","naam bijscholing, naam lesgever, locatie, datum","naam bijscholing, naam lesgever, locatie, datum","naam bijscholing, naam lesgever, locatie, datum","naam bijscholing, naam lesgever, locatie, datum","naam bijscholing, naam lesgever, locatie, datum","naam bijscholing, naam lesgever, locatie, datum","Diploma 2017-2018","Volgen VTS-opleiding","Initiator","Instructeur B","Trainer B","Trainer A","Bachelor LO","Master LO","'x' zetten om deelname aan clinics en hoogste diploma  aan te duiden!!!\nPer clinic dat gevolgd wordt, moeten de gegevens van de clinic bovenaan ingevuld worden!!!\nStart2Volley-clinics hoeven in deze lijst niet ingevuld te worden!!! Deze gegevens worden gecentraliseerd bij de federatie!!!\nAls een trainer een diploma Bachelor/Master LO én een trainersdiploma moeten beiden aangekruist worden!!!"]
[{"$nulls":4},"U3 - U19","Hoofdtrainer, Assistenttrainer,…","Alg. Totaal",{"$f":"H4+H31","v":0},{"$nulls":10},{"$f":"IF(SUM(U3:Z3)>0,SUM(U3:Z3),\"0\")","v":"0"},{"$f":"COUNTA(T4:T54)","v":0},{"$f":"COUNTA(U4:U54)","v":0},{"$f":"COUNTA(V4:V54)","v":0},{"$f":"COUNTA(W4:W54)","v":0},{"$f":"COUNTA(X4:X54)","v":0},{"$f":"COUNTA(Y4:Y54)","v":0},{"$f":"COUNTA(Z4:Z54)","v":0},"Totaal wordt automatisch \naangepast!!!"]
["Trainers",{"$nulls":5},"Totaal",{"$f":"SUM(I4:R4)","v":0},{"$f":"COUNTA(I5:I29)","v":0},{"$f":"COUNTA(J5:J29)","v":0},{"$f":"COUNTA(K5:K29)","v":0},{"$f":"COUNTA(L5:L29)","v":0},{"$f":"COUNTA(M5:M29)","v":0},{"$f":"COUNTA(N5:N29)","v":0},{"$f":"COUNTA(O5:O29)","v":0},{"$f":"COUNTA(P5:P29)","v":0},{"$f":"COUNTA(Q5:Q29)","v":0},{"$f":"COUNTA(R5:R29)","v":0}]
{"$rows_empty":25}
[{"$nulls":8},"naam bijscholing, naam lesgever, locatie, datum","naam bijscholing, naam lesgever, locatie, datum","naam bijscholing, naam lesgever, locatie, datum","naam bijscholing, naam lesgever, locatie, datum","naam bijscholing, naam lesgever, locatie, datum","naam bijscholing, naam lesgever, locatie, datum","naam bijscholing, naam lesgever, locatie, datum","naam bijscholing, naam lesgever, locatie, datum","naam bijscholing, naam lesgever, locatie, datum","naam bijscholing, naam lesgever, locatie, datum"]
["Bestuursleden",{"$nulls":5},"Totaal",{"$f":"SUM(I31:R31)","v":0},{"$f":"COUNTA(I32:I54)","v":0},{"$f":"COUNTA(J32:J54)","v":0},0,0,0,0,0,0,0,0]

{"sheet":"Blad2","index":1,"n_rows":0,"n_cols":0,"rows_kept":0}